[Event "Masters Tournament (MTO)"]
[Site "Biel, Switzerland"]
[Date "2026.07.17"]
[Round "5.11"]
[White "Coban, Ege"]
[Black "Cao, Qingfeng"]
[Result "0-1"]
[TimeControl "100+30+30sec/move"]
[WhiteTitle "-"]
[BlackTitle "-"]
[WhiteFideId "26320304"]
[BlackFideId "8627568"]
[WhiteElo "1986"]
[BlackElo "2365"]

1. e4 {[%clk 01:40:55]} {[%emt 00:00:02]} c6 {[%clk 01:40:45]} {[%emt
00:00:15]} 2. d4 {[%clk 01:41:10]} {[%emt 00:00:15]} d5 {[%clk 01:41:07]}
{[%emt 00:00:08]} 3. e5 {[%clk 01:41:30]} {[%emt 00:00:11]} Bf5 {[%clk
01:41:26]} {[%emt 00:00:09]} 4. h4 {[%clk 01:41:43]} {[%emt 00:00:20]} h5
{[%clk 01:41:47]} {[%emt 00:00:07]} 5. Bd3 {[%clk 01:42:04]} {[%emt 00:00:08]}
Bxd3 {[%clk 01:41:47]} {[%emt 00:00:30]} 6. Qxd3 {[%clk 01:42:09]} {[%emt
00:00:29]} Qa5+ {[%clk 01:42:01]} {[%emt 00:00:15]} 7. Nd2 {[%clk 01:39:18]}
{[%emt 00:03:20]} e6 {[%clk 01:42:14]} {[%emt 00:00:17]} 8. Ngf3 {[%clk
01:39:40]} {[%emt 00:00:08]} Nh6 {[%clk 01:41:40]} {[%emt 00:01:04]} 9. O-O
{[%clk 01:38:20]} {[%emt 00:01:50]} Nf5 {[%clk 01:41:37]} {[%emt 00:00:33]} 10.
Rd1 {[%clk 01:37:25]} {[%emt 00:01:25]} Be7 {[%clk 01:38:38]} {[%emt 00:03:29]}
11. g3 {[%clk 01:36:33]} {[%emt 00:01:21]} Qa6 {[%clk 01:35:13]} {[%emt
00:03:56]} 12. c4 {[%clk 01:32:37]} {[%emt 00:04:26]} O-O {[%clk 01:35:21]}
{[%emt 00:00:21]} 13. b3 {[%clk 01:31:17]} {[%emt 00:01:51]} Rd8 {[%clk
01:35:09]} {[%emt 00:00:42]} 14. Qc2 {[%clk 01:24:26]} {[%emt 00:07:21]} Nd7
{[%clk 01:16:56]} {[%emt 00:18:43]} 15. Bb2 {[%clk 01:16:10]} {[%emt 00:08:46]}
g6 {[%clk 01:13:28]} {[%emt 00:03:57]} 16. Nf1 {[%clk 01:11:33]} {[%emt
00:05:07]} dxc4 {[%clk 01:04:51]} {[%emt 00:09:07]} 17. bxc4 {[%clk 01:10:33]}
{[%emt 00:01:30]} Nb6 {[%clk 01:04:37]} {[%emt 00:00:44]} 18. Rac1 {[%clk
00:56:33]} {[%emt 00:14:30]} Qxa2 {[%clk 00:52:47]} {[%emt 00:12:20]} 19. Ne3
{[%clk 00:53:40]} {[%emt 00:03:24]} Nxe3 {[%clk 00:45:17]} {[%emt 00:08:00]} 20.
fxe3 {[%clk 00:54:05]} {[%emt 00:00:05]} Na4 {[%clk 00:35:54]} {[%emt
00:09:53]} 21. Ba1 {[%clk 00:47:02]} {[%emt 00:07:33]} Qxc2 {[%clk 00:36:15]}
{[%emt 00:00:09]} 22. Rxc2 {[%emt 00:10:23]} Nb6 {[%clk 00:26:23]} 23. e4
{[%clk 00:42:31]} {[%emt 00:05:29]} Rac8 {[%clk 00:15:00]} {[%emt 00:11:54]} 24.
Rb1 {[%clk 00:33:09]} {[%emt 00:09:52]} Rc7 {[%clk 00:14:59]} {[%emt 00:00:31]}
25. Nd2 {[%clk 00:31:32]} {[%emt 00:02:06]} Nc8 {[%clk 00:11:28]} {[%emt
00:04:01]} 26. Rf1 {[%clk 00:30:42]} {[%emt 00:01:20]} Rcd7 {[%clk 00:11:31]}
{[%emt 00:00:27]} 27. Nb3 {[%clk 00:29:52]} {[%emt 00:01:20]} Bb4 {[%clk
00:11:47]} {[%emt 00:00:15]} 28. Ra2 {[%clk 00:28:11]} {[%emt 00:02:11]} b6
{[%clk 00:10:25]} {[%emt 00:01:52]} 29. Ra6 {[%clk 00:27:14]} {[%emt 00:01:27]}
Be7 {[%clk 00:07:53]} {[%emt 00:03:02]} 30. Kg2 {[%clk 00:26:36]} {[%emt
00:01:08]} Rf8 {[%clk 00:07:44]} {[%emt 00:00:39]} 31. Nd2 {[%clk 00:22:12]}
{[%emt 00:04:54]} f5 {[%clk 00:07:05]} {[%emt 00:01:09]} 32. Rd1 {[%clk
00:19:25]} {[%emt 00:03:16]} Bb4 {[%clk 00:06:05]} {[%emt 00:01:31]} 33. exf5
{[%clk 00:19:33]} {[%emt 00:00:22]} gxf5 {[%clk 00:06:09]} {[%emt 00:00:26]} 34.
Nf3 {[%clk 00:18:56]} {[%emt 00:01:06]} Be7 {[%clk 00:06:37]} {[%emt 00:00:02]}
35. Bb2 {[%clk 00:18:48]} {[%emt 00:00:38]} Rfd8 {[%clk 00:06:54]} {[%emt
00:00:14]} 36. Rda1 {[%clk 00:11:32]} {[%emt 00:07:46]} c5 {[%clk 00:06:00]}
{[%emt 00:01:23]} 37. dxc5 {[%clk 00:11:57]} {[%emt 00:00:05]} Bxc5 {[%clk
00:06:14]} {[%emt 00:00:17]} 38. Bc1 {[%clk 00:12:22]} {[%emt 00:00:06]} Rd1
{[%clk 00:05:47]} {[%emt 00:00:55]} 39. Bg5 {[%clk 00:12:39]} {[%emt 00:00:13]}
Rxa1 {[%clk 00:06:02]} {[%emt 00:00:16]} 40. Rxa1 {[%clk 00:13:08]} {[%emt
00:00:01]} Rd3 {[%clk 00:01:54]} {[%emt 00:04:37]} 41. Bf6 {[%clk 00:13:06]}
{[%emt 00:00:33]} Be3 {[%clk 00:01:39]} {[%emt 00:00:45]} 42. Kf1 {[%clk
00:09:54]} {[%emt 00:03:42]} Bd4 {[%clk 00:27:20]} {[%emt 00:04:48]} 43. Nxd4
{[%clk 00:40:15]} {[%emt 00:00:10]} Rxd4 {[%clk 00:27:45]} {[%emt 00:00:05]} 44.
Rc1 {[%clk 00:34:54]} {[%emt 00:05:50]} Kf7 {[%clk 00:22:57]} {[%emt 00:05:19]}
45. Kf2 {[%clk 00:32:41]} {[%emt 00:02:44]} Nd6 {[%clk 00:16:38]} {[%emt
00:06:48]} 46. exd6 {[%clk 00:31:29]} {[%emt 00:01:42]} Kxf6 {[%clk 00:17:06]}
{[%emt 00:00:02]} 47. c5 {[%clk 00:30:46]} {[%emt 00:01:14]} bxc5 {[%clk
00:17:16]} {[%emt 00:00:19]} 48. Rxc5 {[%clk 00:31:13]} {[%emt 00:00:03]} Rxd6
{[%clk 00:17:38]} {[%emt 00:00:08]} 49. Rc7 {[%clk 00:31:12]} {[%emt 00:00:31]}
a5 {[%clk 00:16:46]} {[%emt 00:01:22]} 50. Ra7 {[%clk 00:31:39]} {[%emt
00:00:03]} Rd2+ {[%clk 00:17:12]} {[%emt 00:00:04]} 51. Kf3 {[%clk 00:30:58]}
{[%emt 00:01:11]} Ra2 {[%clk 00:17:08]} {[%emt 00:00:33]} 52. Rh7 {[%clk
00:31:01]} {[%emt 00:00:27]} a4 {[%clk 00:17:01]} {[%emt 00:00:37]} 53. Rxh5
{[%clk 00:30:35]} {[%emt 00:00:56]} a3 {[%clk 00:13:03]} {[%emt 00:04:28]} 54.
Rh6+ {[%clk 00:29:59]} {[%emt 00:01:07]} Ke5 {[%clk 00:11:17]} {[%emt
00:02:15]} 55. Rh8 {[%clk 00:29:55]} {[%emt 00:00:34]} Ra1 {[%clk 00:11:19]}
{[%emt 00:00:29]} 56. Ra8 {[%clk 00:30:18]} {[%emt 00:00:07]} Kf6 {[%clk
00:11:33]} {[%emt 00:00:14]} 57. Ra6 {[%clk 00:30:15]} {[%emt 00:00:35]} a2
{[%clk 00:11:48]} {[%emt 00:00:15]} 58. Kg2 {[%clk 00:30:42]} {[%emt 00:00:03]}
Kg7 {[%clk 00:12:11]} {[%emt 00:00:07]} 59. Ra7+ {[%clk 00:30:35]} {[%emt
00:00:37]} Kh6 {[%clk 00:12:35]} {[%emt 00:00:06]} 60. Ra6 {[%clk 00:30:48]}
{[%emt 00:00:17]} Kh5 {[%clk 00:13:00]} {[%emt 00:00:04]} 61. Ra7 {[%clk
00:30:59]} {[%emt 00:00:20]} e5 {[%clk 00:13:07]} {[%emt 00:00:23]} 62. Ra5
{[%clk 00:31:26]} {[%emt 00:00:03]} Kg4 {[%clk 00:13:26]} {[%emt 00:00:10]} 63.
h5 {[%clk 00:31:37]} {[%emt 00:00:19]} Kxh5 {[%clk 00:13:51]} {[%emt 00:00:05]}
64. Kh2 {[%clk 00:31:54]} {[%emt 00:00:13]} Kg5 {[%clk 00:14:13]} {[%emt
00:00:08]} 65. Kg2 {[%clk 00:32:19]} {[%emt 00:00:06]} e4 {[%clk 00:14:39]}
{[%emt 00:00:04]} 66. g4 {[%clk 00:32:38]} {[%emt 00:00:10]} Kxg4 {[%clk
00:15:04]} {[%emt 00:00:05]} 67. Ra3 {[%clk 00:32:58]} {[%emt 00:00:10]} e3
{[%clk 00:15:24]} {[%emt 00:00:10]} 68. Rxe3 {[%clk 00:33:02]} {[%emt
00:00:27]} Rb1 {[%clk 00:15:47]} {[%emt 00:00:07]} 0-1

[Event "Masters Tournament (MTO)"]
[Site "Biel, Switzerland"]
[Date "2026.07.17"]
[Round "5.12"]
[White "Dong, Hongfu"]
[Black "Ragavan, Samarth Rajesh"]
[Result "1-0"]
[TimeControl "100+30+30sec/move"]
[WhiteTitle "-"]
[BlackTitle "-"]
[WhiteFideId "8626960"]
[BlackFideId "39918106"]
[WhiteElo "2353"]
[BlackElo "2106"]

1. e4 {[%clk 01:40:58]} {[%emt 04:28:52]} c5 {[%clk 01:40:54]} {[%emt
00:00:07]} 2. Nf3 {[%clk 01:41:18]} {[%emt 00:00:07]} e6 {[%clk 01:41:21]}
{[%emt 00:00:04]} 3. d4 {[%clk 01:41:39]} {[%emt 00:00:11]} cxd4 {[%clk
01:41:47]} {[%emt 00:00:03]} 4. Nxd4 {[%clk 01:42:04]} {[%emt 00:00:04]} a6
{[%clk 01:42:13]} {[%emt 00:00:03]} 5. Bd3 {[%clk 01:38:02]} {[%emt 00:04:33]}
Bc5 {[%clk 01:42:28]} {[%emt 00:00:15]} 6. Nb3 {[%clk 01:38:26]} {[%emt
00:00:06]} Ba7 {[%clk 01:42:53]} {[%emt 00:00:04]} 7. Qg4 {[%clk 01:38:33]}
{[%emt 00:00:24]} Nf6 {[%clk 01:43:01]} {[%emt 00:00:23]} 8. Qg3 {[%clk
01:38:55]} {[%emt 00:00:08]} d6 {[%clk 01:39:46]} {[%emt 00:03:45]} 9. Nc3
{[%clk 01:38:54]} {[%emt 00:00:30]} Nc6 {[%clk 01:39:51]} {[%emt 00:00:25]} 10.
Bg5 {[%clk 01:38:26]} {[%emt 00:00:58]} h6 {[%clk 01:38:08]} {[%emt 00:02:13]}
11. Bd2 {[%clk 01:38:43]} {[%emt 00:00:12]} Nb4 {[%clk 01:37:02]} {[%emt
00:01:37]} 12. O-O-O {[%clk 01:25:29]} {[%emt 00:13:44]} Nxd3+ {[%clk
01:37:17]} {[%emt 00:00:14]} 13. cxd3 {[%clk 01:25:54]} {[%emt 00:00:06]} Rg8
{[%clk 01:14:07]} {[%emt 00:23:40]} 14. f4 {[%clk 01:16:32]} {[%emt 00:09:52]}
Bd7 {[%clk 01:06:55]} {[%emt 00:07:42]} 15. e5 {[%clk 00:53:32]} {[%emt
00:23:30]} dxe5 {[%clk 01:06:53]} {[%emt 00:00:32]} 16. fxe5 {[%clk 00:53:58]}
{[%emt 00:00:04]} Bb8 {[%clk 01:06:52]} {[%emt 00:00:32]} 17. Rhf1 {[%clk
00:50:33]} {[%emt 00:03:55]} Bc6 {[%clk 00:59:42]} {[%emt 00:07:40]} 18. Rde1
{[%clk 00:42:37]} {[%emt 00:08:25]} Nd5 {[%clk 00:54:55]} {[%emt 00:05:18]} 19.
Bxh6 {[%clk 00:40:48]} {[%emt 00:02:19]} Nb4 {[%clk 00:53:56]} {[%emt
00:01:28]} 20. d4 {[%clk 00:40:55]} {[%emt 00:00:23]} Bb5 {[%clk 00:41:41]}
{[%emt 00:12:45]} 21. Nxb5 {[%clk 00:35:26]} {[%emt 00:05:59]} axb5 {[%clk
00:40:26]} {[%emt 00:01:46]} 22. Rxf7 {[%clk 00:34:01]} {[%emt 00:01:55]} Kxf7
{[%clk 00:37:09]} {[%emt 00:03:46]} 23. Rf1+ {[%clk 00:34:30]} {[%emt
00:00:02]} Ke8 {[%clk 00:37:13]} {[%emt 00:00:26]} 24. Qg6+ {[%clk 00:34:56]}
{[%emt 00:00:03]} Kd7 {[%clk 00:37:36]} {[%emt 00:00:07]} 25. Rf7+ {[%clk
00:35:24]} {[%emt 00:00:03]} Kc6 {[%clk 00:37:43]} {[%emt 00:00:22]} 26. Qxe6+
{[%clk 00:35:51]} {[%emt 00:00:03]} Bd6 {[%clk 00:37:54]} {[%emt 00:00:19]} 27.
exd6 {[%clk 00:36:20]} {[%emt 00:00:02]} gxh6 {[%clk 00:24:38]} {[%emt
00:13:46]} 28. d7+ {[%clk 00:32:03]} {[%emt 00:04:46]} Kc7 {[%clk 00:24:54]}
{[%emt 00:00:14]} 29. Qe5+ {[%clk 00:32:28]} {[%emt 00:00:06]} Kb6 {[%clk
00:25:01]} {[%emt 00:00:22]} 30. Qc5+ {[%clk 00:32:51]} {[%emt 00:00:07]} Ka6
{[%clk 00:25:26]} {[%emt 00:00:05]} 31. Qxb4 {[%clk 00:33:17]} {[%emt
00:00:04]} Qg5+ {[%clk 00:25:36]} {[%emt 00:00:20]} 32. Kb1 {[%clk 00:33:12]}
{[%emt 00:00:34]} Qg6+ {[%clk 00:22:37]} {[%emt 00:03:30]} 33. Ka1 {[%clk
00:33:32]} {[%emt 00:00:10]} Kb6 {[%clk 00:21:52]} {[%emt 00:01:15]} 34. Qc5+
{[%clk 00:33:56]} {[%emt 00:00:06]} Ka6 {[%clk 00:22:18]} {[%emt 00:00:05]} 35.
Qc7 {[%clk 00:34:12]} {[%emt 00:00:13]} Qb6 {[%clk 00:20:25]} {[%emt 00:02:23]}
36. Rf6 {[%clk 00:34:37]} {[%emt 00:00:06]} 1-0

[Event "Masters Tournament (MTO)"]
[Site "Biel, Switzerland"]
[Date "2026.07.17"]
[Round "5.13"]
[White "Haimovich, Tal"]
[Black "Yasaswi, Krishna Bommi"]
[Result "0-1"]
[TimeControl "100+30+30sec/move"]
[WhiteTitle "-"]
[BlackTitle "-"]
[WhiteFideId "2801698"]
[BlackFideId "33368783"]
[WhiteElo "2310"]
[BlackElo "2085"]

1. d4 {[%clk 01:40:53]} Nf6 {[%clk 01:40:51]} {[%emt 00:00:11]} 2. c4 {[%clk
01:41:16]} {[%emt 00:00:05]} g6 {[%clk 01:41:18]} {[%emt 00:00:03]} 3. Nc3
{[%clk 01:41:40]} {[%emt 00:00:07]} Bg7 {[%clk 01:41:42]} {[%emt 00:00:07]} 4.
e4 {[%clk 01:41:56]} {[%emt 00:00:12]} d6 {[%clk 01:42:07]} {[%emt 00:00:06]} 5.
Be2 {[%clk 01:42:04]} {[%emt 00:00:22]} O-O {[%clk 01:41:49]} {[%emt 00:00:48]}
6. Nf3 {[%clk 01:41:58]} {[%emt 00:00:37]} e5 {[%clk 01:40:30]} {[%emt
00:01:50]} 7. O-O {[%clk 01:41:44]} {[%emt 00:00:42]} Nbd7 {[%clk 01:39:55]}
{[%emt 00:01:06]} 8. d5 {[%clk 01:41:20]} {[%emt 00:00:53]} Nc5 {[%clk
01:39:32]} {[%emt 00:00:53]} 9. Qc2 {[%clk 01:39:51]} {[%emt 00:01:58]} a5
{[%clk 01:39:03]} {[%emt 00:01:00]} 10. Ne1 {[%clk 01:31:33]} {[%emt 00:08:48]}
Ne8 {[%clk 01:32:30]} {[%emt 00:07:02]} 11. Nd3 {[%clk 01:27:32]} {[%emt
00:04:31]} b6 {[%clk 01:26:55]} {[%emt 00:06:06]} 12. Be3 {[%clk 01:13:24]}
{[%emt 00:14:38]} f5 {[%clk 01:20:45]} {[%emt 00:06:40]} 13. f3 {[%clk
01:06:34]} {[%emt 00:07:20]} f4 {[%clk 01:16:09]} {[%emt 00:05:07]} 14. Bf2
{[%clk 01:06:58]} {[%emt 00:00:05]} h5 {[%clk 01:12:26]} {[%emt 00:04:12]} 15.
a3 {[%clk 00:57:28]} {[%emt 00:10:01]} Nxd3 {[%clk 01:06:37]} {[%emt 00:06:19]}
16. Qxd3 {[%clk 00:55:08]} {[%emt 00:02:50]} g5 {[%clk 01:05:25]} {[%emt
00:01:42]} 17. b4 {[%clk 00:53:26]} {[%emt 00:02:12]} g4 {[%clk 01:01:12]}
{[%emt 00:04:43]} 18. Rfc1 {[%clk 00:44:43]} {[%emt 00:09:13]} Qg5 {[%clk
00:54:51]} {[%emt 00:06:51]} 19. Qd2 {[%clk 00:42:47]} {[%emt 00:02:25]} Bh6
{[%clk 00:49:21]} {[%emt 00:06:01]} 20. Be1 {[%clk 00:37:46]} {[%emt 00:05:31]}
Rf7 {[%clk 00:44:40]} {[%emt 00:05:11]} 21. c5 {[%clk 00:33:48]} {[%emt
00:04:28]} bxc5 {[%clk 00:41:52]} {[%emt 00:03:18]} 22. bxc5 {[%clk 00:34:08]}
{[%emt 00:00:10]} Rg7 {[%clk 00:40:23]} {[%emt 00:01:59]} 23. Nb5 {[%clk
00:32:51]} {[%emt 00:01:46]} Qg6 {[%clk 00:35:11]} {[%emt 00:05:42]} 24. cxd6
{[%clk 00:30:42]} {[%emt 00:02:39]} cxd6 {[%clk 00:34:35]} {[%emt 00:01:07]} 25.
Ra2 {[%clk 00:29:43]} {[%emt 00:01:29]} gxf3 {[%clk 00:27:36]} {[%emt
00:07:30]} 26. Bxf3 {[%clk 00:29:57]} {[%emt 00:00:15]} Bg4 {[%clk 00:24:24]}
{[%emt 00:03:42]} 27. Qd3 {[%clk 00:30:10]} {[%emt 00:00:16]} Bg5 {[%clk
00:20:39]} {[%emt 00:04:15]} 28. Kf1 {[%clk 00:20:21]} {[%emt 00:10:19]} Bd8
{[%clk 00:17:29]} {[%emt 00:03:41]} 29. Bf2 {[%clk 00:20:21]} {[%emt 00:00:30]}
Bxf3 {[%clk 00:14:32]} {[%emt 00:03:27]} 30. Qxf3 {[%clk 00:20:40]} {[%emt
00:00:10]} Nf6 {[%clk 00:14:27]} {[%emt 00:00:36]} 31. Re2 {[%clk 00:16:47]}
{[%emt 00:04:23]} Ng4 {[%clk 00:13:49]} {[%emt 00:01:08]} 32. Bg1 {[%clk
00:14:32]} {[%emt 00:02:44]} Bb6 {[%clk 00:12:19]} {[%emt 00:02:00]} 33. Rc6
{[%clk 00:12:42]} {[%emt 00:02:21]} Bc5 {[%clk 00:11:06]} {[%emt 00:01:43]} 34.
Rc2 {[%clk 00:10:22]} {[%emt 00:02:49]} Ne3+ {[%clk 00:06:48]} {[%emt
00:04:49]} 35. Bxe3 {[%clk 00:10:41]} {[%emt 00:00:10]} fxe3 {[%clk 00:07:14]}
{[%emt 00:00:05]} 36. R2xc5 {[%clk 00:07:08]} {[%emt 00:04:03]} Rf8 {[%clk
00:07:23]} {[%emt 00:00:21]} 37. Qxf8+ {[%clk 00:06:47]} {[%emt 00:00:51]} Kxf8
{[%clk 00:07:49]} {[%emt 00:00:04]} 38. Rc8+ {[%clk 00:07:12]} {[%emt
00:00:05]} Ke7 {[%clk 00:06:30]} {[%emt 00:01:49]} 39. R5c7+ {[%clk 00:06:06]}
{[%emt 00:01:36]} Kf6 {[%clk 00:06:53]} {[%emt 00:00:06]} 40. Rf8+ {[%clk
00:04:22]} {[%emt 00:02:14]} Kg5 {[%clk 00:07:17]} {[%emt 00:00:06]} 41. Rxg7
{[%clk 00:29:29]} {[%emt 00:05:24]} Qxg7 {[%clk 00:37:41]} {[%emt 00:00:06]} 42.
Rf3 {[%clk 00:24:42]} {[%emt 00:05:17]} Qb7 {[%clk 00:33:48]} {[%emt 00:04:23]}
43. a4 {[%clk 00:24:34]} {[%emt 00:00:38]} Qb6 {[%clk 00:32:32]} {[%emt
00:01:45]} 44. Ke2 {[%clk 00:21:31]} {[%emt 00:03:33]} Qc5 {[%clk 00:27:24]}
{[%emt 00:05:38]} 45. Rxe3 {[%clk 00:18:40]} {[%emt 00:03:21]} Qc4+ {[%clk
00:24:55]} {[%emt 00:02:59]} 46. Kf2 {[%clk 00:16:51]} {[%emt 00:02:18]} Qxa4
{[%clk 00:20:02]} {[%emt 00:05:24]} 47. Nxd6 {[%clk 00:14:59]} {[%emt
00:02:22]} Qc2+ {[%clk 00:18:47]} {[%emt 00:01:46]} 48. Kf3 {[%clk 00:12:14]}
{[%emt 00:03:15]} a4 {[%clk 00:17:18]} {[%emt 00:01:59]} 49. h4+ {[%clk
00:11:01]} {[%emt 00:01:42]} Kf6 {[%clk 00:14:40]} {[%emt 00:03:08]} 50. Nf5
{[%clk 00:07:20]} {[%emt 00:04:11]} Qc1 {[%clk 00:11:39]} {[%emt 00:03:31]} 51.
Rd3 {[%clk 00:04:45]} {[%emt 00:03:05]} Qf4+ {[%clk 00:10:57]} {[%emt
00:01:13]} 52. Ke2 {[%clk 00:05:09]} {[%emt 00:00:05]} Qxe4+ {[%clk 00:11:19]}
{[%emt 00:00:08]} 53. Ne3 {[%clk 00:05:36]} {[%emt 00:00:02]} Ke7 {[%clk
00:09:59]} {[%emt 00:01:51]} 54. g3 {[%clk 00:04:45]} {[%emt 00:01:21]} Kd8
{[%clk 00:07:34]} {[%emt 00:02:55]} 55. Ra3 {[%clk 00:02:52]} {[%emt 00:02:24]}
Qb4 {[%clk 00:07:16]} {[%emt 00:00:48]} 56. Nc2 {[%clk 00:03:08]} {[%emt
00:00:14]} Qc4+ {[%clk 00:06:42]} {[%emt 00:01:04]} 57. Kd2 {[%clk 00:03:17]}
{[%emt 00:00:20]} e4 {[%clk 00:06:31]} {[%emt 00:00:41]} 58. Kc1 {[%clk
00:03:11]} {[%emt 00:00:37]} Kd7 {[%clk 00:05:54]} {[%emt 00:01:07]} 59. Kb2
{[%clk 00:02:45]} {[%emt 00:00:55]} Qb5+ {[%clk 00:04:20]} {[%emt 00:02:05]} 60.
Ka1 {[%clk 00:01:39]} {[%emt 00:01:36]} Qxd5 {[%clk 00:03:16]} {[%emt
00:01:34]} 61. Rxa4 {[%clk 00:01:15]} {[%emt 00:00:53]} Qb3 {[%clk 00:02:37]}
{[%emt 00:01:10]} 62. Ra7+ {[%clk 00:00:43]} {[%emt 00:01:01]} Kc8 {[%clk
00:01:54]} {[%emt 00:01:13]} 63. Ra2 {[%clk 00:00:49]} {[%emt 00:00:23]} e3
{[%clk 00:01:44]} {[%emt 00:00:41]} 64. Rb2 {[%clk 00:00:37]} {[%emt 00:00:41]}
Qc3 {[%clk 00:01:42]} {[%emt 00:00:33]} 65. Ka2 {[%clk 00:00:36]} {[%emt
00:00:32]} e2 {[%clk 00:01:49]} {[%emt 00:00:23]} 66. Kb1 {[%clk 00:00:33]}
{[%emt 00:00:32]} e1=Q+ {[%clk 00:01:30]} {[%emt 00:00:49]} 67. Nxe1 {[%clk
00:00:57]} {[%emt 00:00:06]} Qxe1+ {[%clk 00:01:56]} {[%emt 00:00:04]} 68. Ka2
{[%clk 00:01:02]} {[%emt 00:00:25]} Qxg3 {[%clk 00:02:16]} {[%emt 00:00:10]} 69.
Rb4 {[%clk 00:01:28]} {[%emt 00:00:04]} Kd7 {[%clk 00:02:24]} {[%emt 00:00:22]}
70. Kb2 {[%clk 00:01:53]} {[%emt 00:00:05]} Ke6 {[%clk 00:02:37]} {[%emt
00:00:17]} 71. Kc2 {[%clk 00:02:16]} {[%emt 00:00:07]} Kf5 {[%clk 00:02:28]}
{[%emt 00:00:39]} 72. Rc4 {[%clk 00:02:33]} {[%emt 00:00:13]} Qe3 {[%clk
00:02:17]} {[%emt 00:00:41]} 73. Ra4 {[%clk 00:01:48]} {[%emt 00:01:15]} Qe2+
{[%clk 00:01:18]} {[%emt 00:01:29]} 74. Kc3 {[%clk 00:02:08]} {[%emt 00:00:10]}
Qe1+ {[%clk 00:01:06]} {[%emt 00:00:42]} 75. Kc2 {[%clk 00:02:29]} {[%emt
00:00:09]} Qg3 {[%clk 00:00:58]} {[%emt 00:00:38]} 76. Rc4 {[%clk 00:02:41]}
{[%emt 00:00:18]} Qe3 {[%clk 00:00:56]} {[%emt 00:00:33]} 77. Ra4 {[%clk
00:02:59]} {[%emt 00:00:11]} Qc5+ {[%clk 00:01:04]} {[%emt 00:00:22]} 78. Kd2
{[%clk 00:02:43]} {[%emt 00:00:46]} Qb5 {[%clk 00:01:08]} {[%emt 00:00:27]} 79.
Rd4 {[%clk 00:02:43]} {[%emt 00:00:30]} Ke5 {[%clk 00:01:25]} {[%emt 00:00:13]}
80. Kc3 {[%clk 00:02:35]} {[%emt 00:00:37]} Qa5+ {[%clk 00:01:43]} {[%emt
00:00:12]} 81. Rb4 {[%clk 00:02:49]} {[%emt 00:00:16]} Kf5 {[%clk 00:01:54]}
{[%emt 00:00:20]} 82. Kb3 {[%clk 00:03:05]} {[%emt 00:00:14]} Qxb4+ {[%clk
00:02:11]} {[%emt 00:00:13]} 83. Kxb4 {[%clk 00:03:33]} {[%emt 00:00:02]} Kg4
{[%clk 00:02:34]} {[%emt 00:00:06]} 84. Kc4 {[%clk 00:03:49]} {[%emt 00:00:14]}
Kxh4 {[%clk 00:03:00]} {[%emt 00:00:05]} 85. Kd3 {[%clk 00:03:42]} {[%emt
00:00:37]} Kg3 {[%clk 00:03:23]} {[%emt 00:00:07]} 0-1

[Event "Masters Tournament (MTO)"]
[Site "Biel, Switzerland"]
[Date "2026.07.17"]
[Round "5.14"]
[White "Ganguly, Surya Shekhar"]
[Black "Harish, Neeraj"]
[Result "1-0"]
[TimeControl "100+30+30sec/move"]
[WhiteTitle "-"]
[BlackTitle "-"]
[WhiteFideId "5002150"]
[BlackFideId "30958130"]
[WhiteElo "2578"]
[BlackElo "2201"]

1. e4 {[%clk 01:40:54]} {[%emt 00:00:05]} c5 {[%clk 01:40:47]} {[%emt
00:00:14]} 2. Nf3 {[%clk 01:41:16]} {[%emt 00:00:07]} e6 {[%clk 01:41:05]}
{[%emt 00:00:13]} 3. d4 {[%clk 01:41:02]} {[%emt 00:00:44]} cxd4 {[%clk
01:41:27]} {[%emt 00:00:08]} 4. Nxd4 {[%clk 01:41:28]} {[%emt 00:00:03]} Nf6
{[%clk 01:41:44]} {[%emt 00:00:14]} 5. Nc3 {[%clk 01:41:52]} {[%emt 00:00:05]}
Nc6 {[%clk 01:42:07]} {[%emt 00:00:07]} 6. a3 {[%clk 01:42:06]} {[%emt
00:00:16]} Be7 {[%clk 01:42:07]} {[%emt 00:00:31]} 7. Nxc6 {[%clk 01:41:51]}
{[%emt 00:00:45]} bxc6 {[%clk 01:42:27]} {[%emt 00:00:11]} 8. e5 {[%clk
01:42:14]} {[%emt 00:00:05]} Nd5 {[%emt 00:00:17]} 9. Qg4 {[%clk 01:42:36]} g6
{[%clk 01:42:56]} {[%emt 00:00:23]} 10. Bd2 {[%clk 01:42:45]} {[%emt 00:00:22]}
d6 {[%clk 01:35:00]} {[%emt 00:08:26]} 11. exd6 {[%clk 01:42:50]} {[%emt
00:00:24]} Bxd6 {[%clk 01:35:03]} {[%emt 00:00:28]} 12. Bc4 {[%clk 01:42:40]}
{[%emt 00:00:38]} O-O {[%clk 01:17:07]} {[%emt 00:18:28]} 13. O-O {[%clk
01:42:51]} {[%emt 00:00:18]} h5 {[%clk 01:10:17]} {[%emt 00:07:21]} 14. Qe2
{[%clk 01:39:09]} {[%emt 00:04:10]} Bb7 {[%clk 01:04:50]} {[%emt 00:05:59]} 15.
Ne4 {[%clk 01:35:56]} {[%emt 00:03:42]} Be7 {[%clk 00:58:11]} {[%emt 00:07:10]}
16. Qf3 {[%clk 01:28:12]} {[%emt 00:08:12]} c5 {[%clk 00:50:54]} {[%emt
00:07:49]} 17. Bh6 {[%clk 01:27:32]} {[%emt 00:01:09]} Re8 {[%clk 00:49:04]}
{[%emt 00:02:21]} 18. Bb5 {[%clk 01:27:04]} {[%emt 00:00:57]} f5 {[%clk
00:38:13]} {[%emt 00:11:22]} 19. Qg3 {[%clk 01:26:56]} {[%emt 00:00:36]} Kh7
{[%clk 00:37:13]} {[%emt 00:01:31]} 20. Ng5+ {[%clk 01:27:13]} {[%emt
00:00:13]} Bxg5 {[%clk 00:37:17]} {[%emt 00:00:27]} 21. Bxg5 {[%clk 01:27:37]}
{[%emt 00:00:05]} Qb6 {[%clk 00:35:35]} {[%emt 00:02:12]} 22. Bxe8 {[%clk
01:27:57]} {[%emt 00:00:11]} Rxe8 {[%clk 00:35:57]} {[%emt 00:00:08]} 23. c4
{[%clk 01:28:15]} {[%emt 00:00:11]} Ne7 {[%clk 00:35:05]} {[%emt 00:01:22]} 24.
Rad1 {[%clk 01:27:56]} {[%emt 00:00:48]} Nc6 {[%clk 00:33:39]} {[%emt
00:01:57]} 25. Rd7+ {[%clk 01:28:13]} {[%emt 00:00:13]} Kg8 {[%clk 00:33:46]}
{[%emt 00:00:24]} 26. Bd8 {[%emt 00:01:30]} 1-0